[Event "40th IND-chT Open 2020"]
[Site "Ahmedabad"]
[Date "2020.02.10"]
[Round "5.21"]
[White "Chandrajeet Singh Rajawat"]
[Black "Eshwanth Dev, Kumar J"]
[Result "0-1"]
[ECO "A45"]
[WhiteElo "1778"]
[BlackElo "1850"]
[Annotator "NA RC"]
[PlyCount "78"]
[EventDate "2020.02.05"]
[EventCountry "IND"]
[SourceTitle "playchess.com"]
[Source "ChessBase"]
[SourceQuality "1"]
[TimeControl "5400+30"]

{[%evp 9,78,18,33,4,1,-14,53,47,32,-2,-6,-8,-6,-127,-85,-89,-93,-117,-127,-187,-233,-210,-248,-225,-222,-229,-175,-220,-171,-264,-256,-283,-299,-300,-271,-442,-477,-496,-560,-605,-497,-512,-418,32767,32767,32767,32767,32767,32767,32767,32767,32767,32767,-467,32767,32767,32767,32767,-579,-595,-648,-950,-1045,-1299,-1066,-958,-1137,-1126,-1327,-29990,-29990]} 1. d4 {[%emt 1:30:30]} Nf6 {[%emt 1:30:30]} 2. Bf4 {[%emt 0:00:30]} g6 {[%emt 0:00:30]} 3. Nc3 {[%emt 0:00:30]} Bg7 {[%emt 0:00:30]} 4. e4 {[%emt 0:00:30]} d5 {[%emt 0:00:30]} 5. e5 {[%emt 0:00:30]} Ne4 {[%emt 0:00:30]} 6. Nce2 {[%emt 0:00:30] A45: Trompowsky Attack.} f6 $1 {[%emt 0:00:30]} 7. f3 {[%emt 0:00:30] [#]} Ng5 $146 {[%emt 0:00:30]} ({Predecessor:} 7... fxe5 8. fxe4 exf4 9. e5 O-O 10. Nf3 Bg4 11. Nc3 e6 12. Bd3 c5 13. h3 Bxf3 14. Qxf3 cxd4 {0-1 (31) Picken,O (1769)-Ang,A (2219) Palmerston North 2018}) 8. Bxg5 {[%emt 0:00:30]} fxg5 {[%emt 0:00:30]} 9. Qd2 {[%emt 0:00:30]} c5 {[%emt 0:00:30]} 10. c3 {[%emt 0:00:30]} Nc6 {[%emt 0:00:30]} 11. dxc5 {[%emt 0:00:30]} (11. Qxg5 $11 {remains equal.} Qa5 12. Qd2) 11... Nxe5 {[%emt 0:00:30]} 12. Nd4 {[%emt 0:00:30]} O-O {[%emt 0:00:30]} 13. O-O-O {[%emt 0:00:30]} Nf7 {[%emt 0:00:30]} 14. c6 {[%emt 0:00:30]} (14. Nc2 $17 {is a better defense.}) 14... Qb6 {[%emt 0:00:30]} 15. cxb7 {[%emt 0:00:30]} Bxb7 {[%emt 0:00:30]} 16. Kb1 {[%emt 0:00:30]} e5 {[%emt 0:00:30]} 17. Nc2 {[%emt 0:00:30]} a5 {[%emt 0:00:30]} 18. Ne2 {[%emt 0:00:30]} Bc6 {[%emt 0:00:30]} 19. Nc1 {[%emt 0:00:30] [#]} (19. h4 $142) 19... g4 $1 {[%emt 0:00:30]} 20. fxg4 {[%emt 0:00:30]} Rab8 {[%emt 0:00:30]} 21. b3 {[%emt 0:00:30]} Nd6 {[%emt 0:00:30]} 22. Qe3 {[%emt 0:00:30]} (22. Re1 $142) 22... Ne4 {[%emt 0:00:30]} 23. Kb2 {[%emt 0:00:30]} Nf2 {[%emt 0:00:30]} 24. Be2 {[%emt 0:00:30]} Qxe3 {[%emt 0:00:30]} 25. Nxe3 {[%emt 0:00:30]} Nxh1 {[%emt 0:00:30]} 26. Rxh1 {[%emt 0:00:30]} Bh6 {[%emt 0:00:30]} 27. Nd1 {[%emt 0:00:30]} e4 {[%emt 0:00:30]} 28. h4 {[%emt 0:00:30]} Bf4 {[%emt 0:00:30]} 29. Kc2 {[%emt 0:00:30]} a4 {[%emt 0:00:30]} 30. b4 {[%emt 0:00:30]} d4 {[%emt 0:00:30]} 31. Bc4+ {[%emt 0:00:30]} Kg7 {[%emt 0:00:30]} 32. a3 {[%emt 0:00:30]} d3+ {[%emt 0:00:30]} 33. Kb2 {[%emt 0:00:30]} Bd7 {[%emt 0:00:30]} 34. Bd5 {[%emt 0:00:30]} Rbe8 {[%emt 0:00:30]} 35. c4 {[%emt 0:00:30]} Bxg4 {[%emt 0:00:30]} 36. c5 {[%emt 0:00:30]} Be5+ {[%emt 0:00:30]} 37. Kb1 {[%emt 0:00:30]} Bxd1 {[%emt 0:00:30]} 38. Rxd1 {[%emt 0:00:30]} Rf2 {[%emt 0:00:30]} 39. Na2 {[%emt 0:00:30]} Rd8 {[%emt 0:00:30]} 0-1

[Event "40th IND-chT Open 2020"]
[Site "Ahmedabad"]
[Date "2020.02.10"]
[Round "5.22"]
[White "Sibi Visal R"]
[Black "Arora Honi"]
[Result "1-0"]
[ECO "E07"]
[WhiteElo "2074"]
[BlackElo "1788"]
[Annotator "NA RC"]
[PlyCount "57"]
[EventDate "2020.02.05"]
[EventCountry "IND"]
[SourceTitle "playchess.com"]
[Source "ChessBase"]
[SourceQuality "1"]
[TimeControl "5400+30"]

{[%evp 20,57,39,44,39,38,35,44,47,56,125,121,134,83,105,61,68,66,74,75,74,73,63,71,67,73,99,116,206,237,318,339,328,285,243,266,339,260,447,485]} 1. c4 {[%emt 0:00:00]} c6 {[%emt 0:00:00]} 2. Nf3 {[%emt 0:00:00]} Nf6 {[%emt 0:00:00]} 3. d4 {[%emt 0:00:00]} d5 {[%emt 0:00:07]} 4. Nc3 {[%emt 0:00:00]} e6 {[%emt 0:00:10]} 5. g3 {[%emt 0:00:16]} Nbd7 {[%emt 0:00:33]} 6. Bg2 {[%emt 0:00:33]} Be7 {[%emt 0:00:38]} 7. O-O {[%emt 0:00:04]} O-O {[%emt 0:00:17]} 8. b3 {[%emt 0:00:02]} b6 {[%emt 0:01:02]} 9. Bb2 {[%emt 0:00:03]} Bb7 {[%emt 0:00:40] 9...Ba6 is the hot move.} 10. Qd3 {[%emt 0:00:08]} c5 {[%emt 0:09:31] E07: Closed Catalan: Main Line (5 Nf3 0-0 6 0-0 Nbd7).} 11. cxd5 {[%emt 0:01:57]} exd5 {[%emt 0:01:03]} 12. Rfd1 {[%emt 0:15:27]} Ne4 {[%emt 0:08:36] [#]} 13. Ne5 $146 {[%emt 0:16:11]} ({Predecessor:} 13. Rac1 Bf6 14. Qb1 Nxc3 15. Bxc3 Re8 16. e3 Qe7 17. Ne1 Rad8 18. Nd3 cxd4 19. Bb4 {1-0 (62) Hnydiuk,A (2409)-Krallis,C (2261) Krakow 2018}) 13... Ndf6 {[%emt 0:14:08]} 14. dxc5 {[%emt 0:04:26]} bxc5 {[%emt 0:04:37] [#]} (14... Bxc5 $14 15. Nxe4 Nxe4) 15. Nxe4 $1 {[%emt 0:03:19]} dxe4 {[%emt 0:04:00]} 16. Qc3 {[%emt 0:02:32]} Qc7 {[%emt 0:05:48]} 17. Rd7 {[%emt 0:01:01]} Nxd7 {[%emt 0:00:50]} 18. Nxd7 {[%emt 0:00:02]} f6 {[%emt 0:00:35]} 19. Nxf8 {[%emt 0:00:02]} Kxf8 {[%emt 0:01:04]} 20. Rc1 {[%emt 0:00:29]} Qd7 {[%emt 0:03:15]} 21. h4 {[%emt 0:01:33]} Rc8 {[%emt 0:04:27]} 22. e3 {[%emt 0:01:50]} Bd6 {[%emt 0:03:28]} 23. Qc4 {[%emt 0:06:12]} f5 {[%emt 0:02:57]} (23... Qe7 $16) 24. Rd1 {[%emt 0:01:07]} Qe7 {[%emt 0:02:29]} 25. Bh3 {[%emt 0:03:23]} g6 {[%emt 0:05:48]} 26. Qc3 {[%emt 0:01:49]} Ke8 {[%emt 0:00:46]} 27. Bf1 {[%emt 0:00:07]} Bc6 {[%emt 0:04:23]} (27... a6) 28. Ba3 {[%emt 0:04:17]} Qf8 $2 {[%emt 0:07:34] [#]} 29. Rxd6 $18 {[%emt 0:04:29]} 1-0

[Event "40th IND-chT Open 2020"]
[Site "Ahmedabad"]
[Date "2020.02.10"]
[Round "5.23"]
[White "Devesh, Mukherjee"]
[Black "Sa, Kannan"]
[Result "0-1"]
[ECO "A13"]
[WhiteElo "1871"]
[BlackElo "1936"]
[Annotator "NA RC"]
[PlyCount "55"]
[EventDate "2020.02.05"]
[EventCountry "IND"]
[SourceTitle "playchess.com"]
[Source "ChessBase"]
[SourceQuality "1"]
[TimeControl "5400+30"]

{[%evp 8,55,22,11,49,26,45,39,54,29,36,29,42,12,62,75,87,67,69,64,76,44,76,0,0,0,8,0,0,0,10,0,0,0,0,0,0,-73,-41,-57,-65,-79,-85,-81,-42,-72,-3,-70,0,-66]} 1. Nf3 {[%emt 0:01:03]} d5 {[%emt 0:00:00]} 2. c4 {[%emt 0:06:15]} e6 {[%emt 0:01:02]} 3. g3 {[%emt 0:00:43]} c6 {[%emt 0:02:36]} 4. Bg2 {[%emt 0:01:09]} Nd7 {[%emt 0:00:31]} 5. O-O {[%emt 0:01:06]} Nb6 {[%emt 0:06:19]} 6. cxd5 {[%emt 0:02:04] [#] A13: English Opening: 1...e6.} cxd5 $146 {[%emt 0:00:13]} ({Predecessor:} 6... exd5 7. d3 Nf6 8. Nbd2 Be7 9. e4 O-O 10. Re1 h6 11. a3 dxe4 12. dxe4 Be6 {0-1 (28) Erdos,B (2185)-Schneider,V (2306) Kisvarda 2012}) 7. d3 {[%emt 0:00:34]} Bd6 {[%emt 0:00:36]} 8. b3 {[%emt 0:05:15]} Nf6 {[%emt 0:00:32]} 9. Bb2 {[%emt 0:00:06]} O-O {[%emt 0:00:22]} 10. Nc3 {[%emt 0:01:52]} Bd7 {[%emt 0:05:44]} (10... e5 $11) 11. e4 {[%emt 0:11:21]} Be7 {[%emt 0:01:02]} 12. Qe2 {[%emt 0:01:36]} Bc6 {[%emt 0:01:57]} 13. Rac1 {[%emt 0:04:35]} a5 {[%emt 0:03:48]} 14. a3 {[%emt 0:04:52]} Nfd7 {[%emt 0:07:21]} 15. d4 {[%emt 0:05:36]} (15. Nd4 $14) 15... dxe4 {[%emt 0:01:24]} 16. Nxe4 {[%emt 0:00:07]} Nd5 {[%emt 0:00:29]} 17. Ne5 {[%emt 0:01:47]} Nxe5 {[%emt 0:00:30]} 18. dxe5 {[%emt 0:00:32]} Qb6 {[%emt 0:00:59]} 19. Nf6+ {[%emt 0:13:36]} gxf6 {[%emt 0:08:37]} 20. Bxd5 $1 {[%emt 0:00:27]} f5 {[%emt 0:00:23]} 21. Bxc6 {[%emt 0:06:23]} bxc6 {[%emt 0:00:03]} 22. g4 {[%emt 0:00:44]} (22. Rc3 $11 {remains equal.}) 22... fxg4 {[%emt 0:03:00]} 23. Qxg4+ {[%emt 0:07:05]} Kh8 {[%emt 0:00:02]} 24. Qf3 {[%emt 0:00:01]} Rab8 {[%emt 0:02:42]} 25. Rc3 {[%emt 0:00:23]} Rg8+ {[%emt 0:06:55]} (25... a4 $5) 26. Kh1 {[%emt 0:00:04]} Qb5 {[%emt 0:01:37]} (26... a4 $5) 27. Rd3 {[%emt 0:00:25]} c5 {[%emt 0:13:57]} (27... Rbd8 $15 28. Rdd1 Rb8) 28. Bc3 $15 {[%emt 0:03:59]} ({Better is} 28. a4 $11 Qb4 29. Bc1) 0-1